bitfinex/quotes_SOLUSD_20250919
["timestamp","ask_amount","ask_price","bid_price","bid_amount"]
[1758316711844,0.82,237.93,237.92,145.04897514]
[1758316717653,0.82,237.93,237.92,112.66897514]
[1758316717855,0.82,237.93,237.92,139.16042924]
[1758316719862,32.02,237.93,237.92,139.16042924]
[1758316720449,33.49962429,237.93,237.92,139.16042924]
[1758316721558,33.49962429,237.93,237.92,106.78042924]
[1758316722041,33.49962429,237.93,237.92,139.16042924]
[1758316722235,2.29962429,237.93,237.92,106.78042924]
[1758316722464,33.49962429,237.93,237.92,139.16042924]
[1758316722761,33.49962429,237.93,237.92,126.77559401]
[1758316723063,33.49962429,237.93,237.92,94.39559401]
[1758316723249,33.49962429,237.93,237.92,126.77559401]
[1758316724348,2.29962429,237.93,237.92,126.77559401]
[1758316726466,0.1,237.93,237.92,130.97868748]
[1758316726668,0.1,237.93,237.92,131.65868748]
[1758316728640,0.1,237.93,237.92,133.34428197]
[1758316732762,0.1,237.93,237.92,100.96428197]
[1758316732963,0.1,237.93,237.92,133.34428197]
[1758316739453,0.1,237.93,237.92,132.66428197]
[1758316740364,0.1,237.93,237.92,133.35428197]
[1758316742474,0.76,237.93,237.92,96.0811885]
[1758316742653,0.76,237.93,237.92,128.4411885]
[1758316743171,0.76,237.93,237.92,126.75559401]
[1758316746180,0.76,237.93,237.92,130.95868748]
[1758316747661,0.1,237.93,237.92,130.95868748]
[1758316749471,0.1,237.93,237.92,135.37258454]
[1758316750782,0.1,237.93,237.92,136.06258454]
[1758316751171,0.1,237.93,237.92,135.37258454]
[1758316752688,0.76,237.93,237.92,135.37258454]
[1758316753288,0.76,237.93,237.92,130.95868748]
[1758316753591,0.76,237.93,237.92,133.79296025]
[1758316753799,0.76,237.93,237.92,129.58986678]
[1758316753968,31.96,237.93,237.92,97.22986678]
[1758316754170,31.96,237.93,237.92,129.58986678]
[1758316754485,31.96,237.93,237.92,126.75559401]
[1758316755369,0.76,237.93,237.92,126.75559401]
[1758316755866,31.96,237.93,237.92,126.75559401]
[1758316757483,31.96,237.93,237.92,45.95559401]
[1758316759701,0.1,237.93,237.92,45.95559401]
[1758316760409,0.76,237.93,237.92,45.95559401]
[1758316760701,0.1,237.93,237.92,45.95559401]
[1758316761482,0.76,237.93,237.92,45.95559401]
[1758316763400,0.76,237.93,237.92,126.75559401]
[1758316766393,31.96,237.93,237.92,126.75559401]
[1758316766586,0.76,237.93,237.92,126.75559401]
[1758316766893,0.51,237.93,237.92,126.75559401]
[1758316767593,31.2,237.94,237.92,126.75559401]
[1758316767986,31.2,237.94,237.92,130.95865944]
[1758316768596,32.87962429,237.95,237.93,13.59559401]
[1758316768797,33.53962429,237.95,237.94,32.36]
[1758316768999,36.37570143,237.95,237.94,32.36]
[1758316769588,34.89607714,237.95,237.94,32.36]
[1758316775797,34.23607714,237.95,237.94,32.36]
[1758316777809,34.23607714,237.95,237.94,33.07]
[1758316777984,0.2,237.95,237.94,50.86833419]
[1758316779412,0.2,237.95,237.94,131.66833419]
[1758316784094,0.2,237.95,237.94,131.64833419]
[1758316786402,0.2,237.95,237.94,94.39559401]
[1758316786612,0.86,237.95,237.94,126.73559401]
[1758316786817,0.2,237.95,237.94,126.73559401]
[1758316787001,0.2,237.95,237.94,130.93833419]
[1758316789810,0.2,237.95,237.94,126.73559401]
[1758316791816,0.2,237.95,237.94,130.93833419]
[1758316794214,0.86,237.95,237.94,130.93833419]
[1758316794412,0.86,237.95,237.94,98.59833419]
[1758316794616,0.2,237.95,237.94,130.93833419]
[1758316795436,0.2,237.95,237.94,133.92078706]
[1758316795724,0.2,237.95,237.94,146.56008263]
[1758316802022,0.2,237.95,237.94,145.89008263]
[1758316802222,0.2,237.95,237.94,65.09008263]
[1758316803315,0.2,237.95,237.94,62.77762976]
[1758316807942,0.2,237.95,237.94,143.57762976]
[1758316818232,0.2,237.95,237.94,144.26762976]
[1758316818933,0.2,237.95,237.94,143.57762976]
[1758316820948,0.86,237.95,237.94,143.57762976]
[1758316821436,0.2,237.95,237.94,143.57762976]
[1758316824136,0.2,237.95,237.94,107.03488958]
[1758316824137,0.86,237.95,237.94,107.03488958]
[1758316824724,0.86,237.95,237.94,94.39559401]
[1758316828345,0.86,237.95,237.94,98.59833419]
[1758316831349,0.86,237.95,237.94,94.39559401]
[1758316833933,0.2,237.95,237.94,98.59833419]
[1758316834739,0.87,237.95,237.94,98.59833419]
[1758316837047,0.2,237.95,237.94,98.59833419]
[1758316839255,2.34974437,237.95,237.94,94.39559401]
[1758316843747,32.07,237.95,237.94,94.39559401]
[1758316844347,31.4,237.95,237.94,94.39559401]
[1758316844546,0.2,237.95,237.94,94.39559401]
[1758316846365,0.87,237.95,237.94,94.39559401]
[1758316846869,0.2,237.95,237.94,94.39559401]
[1758316849161,0.2,237.95,237.94,98.59833419]
[1758316849469,0.2,237.95,237.94,99.29833419]
[1758316849949,31.4,237.95,237.94,98.59833419]
[1758316850342,31.4,237.95,237.94,99.29833419]
[1758316852173,0.2,237.95,237.94,99.29833419]
[1758316853045,0.2,237.95,237.94,98.59833419]
[1758316853259,0.2,237.95,237.94,99.29833419]
[1758316854363,0.2,237.95,237.94,98.59833419]
[1758316856165,0.2,237.95,237.94,99.26833419]
[1758316856773,0.2,237.95,237.94,98.59833419]
[1758316857449,0.2,237.95,237.94,99.26833419]
[1758316858483,0.2,237.95,237.94,98.59833419]
[1758316864779,31.4,237.95,237.94,98.59833419]
[1758316866172,0.2,237.95,237.94,98.59833419]
[1758316867662,0.2,237.95,237.94,94.39559401]
[1758316867864,2.39974437,237.95,237.94,94.39559401]
[1758316868059,6.60230793,237.95,237.94,13.59559401]
[1758316868279,41.73645721,237.95,237.94,13.59559401]
[1758316868486,40.25671284,237.95,237.94,13.59559401]
[1758316868777,41.73645721,237.95,237.94,13.59559401]
[1758316868975,31.2,237.92,237.91,13.59559401]
[1758316869179,65.69974437,237.92,237.91,13.59559401]
[1758316871661,2.19974437,237.92,237.91,13.59559401]
[1758316871975,34.49974437,237.92,237.91,13.59559401]
[1758316873285,34.49974437,237.92,237.9,13.59559401]
[1758316873583,31.92,237.91,237.9,13.59559401]
[1758316876286,33.39974437,237.91,237.9,13.59559401]
[1758316877792,32.67974437,237.91,237.9,13.59559401]
[1758316882989,33.39974437,237.91,237.9,13.59559401]
[1758316884375,32.67974437,237.91,237.9,13.59559401]
[1758316884776,64.95974437,237.91,237.9,13.59559401]
[1758316885702,63.48,237.91,237.9,13.59559401]
[1758316886500,64.95974437,237.91,237.9,13.59559401]
[1758316887915,63.48,237.91,237.9,13.59559401]
[1758316888552,31.2,237.91,237.9,13.59559401]
[1758316888703,31.2,237.91,237.9,18.51904083]
[1758316888881,0.2,237.95,237.9,52.2787852]
[1758316889212,31.4,237.95,237.93,13.59559401]
[1758316889413,31.4,237.95,237.94,14.31559401]
[1758316889611,0.2,237.95,237.94,15.79533838]
[1758316889994,0.2,237.95,237.94,14.31559401]
[1758316890824,0.2,237.95,237.94,18.51833419]
[1758316892126,0.2,237.95,237.94,50.79833419]
[1758316893127,0.2,237.95,237.94,50.07833419]
[1758316893795,0.2,237.95,237.94,50.79833419]
[1758316899920,0.2,237.95,237.94,131.59833419]
[1758316906618,0.2,237.95,237.94,133.28371562]
[1758316907320,0.2,237.95,237.94,131.59833419]
[1758316909712,0.2,237.95,237.94,133.28371562]
[1758316911624,0.2,237.95,237.94,135.59519578]
[1758316918204,0.2,237.95,237.94,132.56371562]
[1758316919127,0.2,237.95,237.94,133.22371562]
[1758316919533,0.2,237.95,237.94,132.56371562]
[1758316920231,0.2,237.95,237.94,133.24371562]
[1758316921338,0.2,237.95,237.94,132.56371562]
[1758316938462,0.2,237.95,237.94,133.24371562]
[1758316938835,0.2,237.95,237.94,132.56371562]
[1758316949765,0.2,237.95,237.94,135.55519578]
[1758316953854,0.2,237.95,237.94,134.72284629]
[1758316958866,0.2,237.95,237.94,134.04284629]
[1758316970975,0.2,237.95,237.94,132.56371562]
[1758316971166,0.89,237.95,237.94,132.56371562]
[1758316972075,0.2,237.95,237.94,132.56371562]
[1758316973869,0.89,237.95,237.94,132.56371562]
[1758316974266,32.09,237.95,237.94,15.28097544]
[1758316974581,34.92481687,237.95,237.94,15.28097544]
[1758316974890,34.92481687,237.95,237.94,13.59559401]
[1758316975069,32.09,237.95,237.94,13.59559401]
[1758316975276,0.89,237.95,237.94,13.59559401]
[1758316975769,32.09,237.95,237.94,13.59559401]
[1758316977669,34.92284511,237.95,237.94,13.59559401]
[1758316978085,32.09,237.95,237.94,13.59559401]
[1758316991212,0.2,237.95,237.94,17.79833419]
[1758316991386,0.2,237.95,237.94,18.46833419]
[1758316992300,0.2,237.95,237.94,17.79833419]
[1758316993705,0.2,237.95,237.94,18.46833419]
[1758316995715,0.2,237.95,237.94,17.79833419]
[1758317000119,0.2,237.95,237.9,12.64195866]
[1758317000120,2.33913067,237.95,237.9,12.64195866]
[1758317000290,32.67913067,237.92,237.83,0.67]
[1758317000493,1.47913067,237.86,237.83,0.67]
[1758317000715,1.47913067,237.87,237.84,13.59559401]
[1758317000885,1.47913067,237.85,237.78,2.86793068]
[1758317001219,1.47913067,237.83,237.81,13.59559401]
[1758317001400,31.2,237.85,237.81,13.59559401]
[1758317001401,31.2,237.85,237.83,13.59559401]
[1758317001585,0.66,237.89,237.85,13.59559401]
[1758317002107,0.66,237.89,237.86,4.2041537]
[1758317003005,0.66,237.89,237.86,4.8741537]
[1758317003792,0.66,237.89,237.86,4.2041537]
[1758317004692,2.13913067,237.89,237.86,4.2041537]
[1758317005291,1.47913067,237.88,237.86,4.2041537]
[1758317006712,0.67,237.89,237.86,4.2041537]
[1758317006891,1.47913067,237.88,237.86,4.2041537]
[1758317012515,1.47913067,237.88,237.87,0.7]
[1758317012724,1.47913067,237.88,237.86,4.9041537]
[1758317013223,1.47913067,237.88,237.86,4.2041537]
[1758317013390,1.47913067,237.88,237.86,4.9041537]
[1758317013912,2.3135981,237.88,237.86,4.9041537]
[1758317014701,2.3135981,237.89,237.87,17.79957097]
[1758317015014,0.87,237.95,237.89,13.59559401]
[1758317015198,2.3135981,237.93,237.89,94.39559401]
[1758317015398,31.2,237.92,237.9,0.7]
[1758317015593,2.9835981,237.93,237.9,0.7]
[1758317015822,2.3135981,237.93,237.9,0.7]
[1758317016130,31.2,237.92,237.91,4.20327014]
[1758317018211,31.2,237.92,237.9,4.20344682]
[1758317018413,31.2,237.92,237.91,0.7]
[1758317018916,31.2,237.92,237.9,4.90344682]
[1758317019217,31.2,237.94,237.91,13.59559401]
[1758317019425,31.2,237.94,237.93,13.59559401]
[1758317019625,0.2,237.95,237.93,13.59559401]
[1758317020419,0.2,237.95,237.94,4.20274018]
[1758317021018,0.2,237.95,237.93,13.59559401]
[1758317022019,0.2,237.95,237.93,17.79842398]
[1758317022623,2.5135981,237.95,237.93,17.79842398]
[1758317022917,0.2,237.95,237.93,17.79842398]
[1758317023127,2.5135981,237.95,237.93,17.79842398]
[1758317024197,0.2,237.95,237.93,17.79842398]
[1758317024800,0.2,237.95,237.93,18.49842398]
[1758317025424,0.2,237.95,237.93,17.79842398]
[1758317025625,0.2,237.95,237.93,18.49842398]
[1758317025927,0.2,237.95,237.93,17.79842398]
[1758317027021,2.5135981,237.95,237.93,17.79842398]
[1758317027905,2.5135981,237.95,237.93,18.49842398]
[1758317028116,2.5135981,237.95,237.93,17.79842398]
[1758317032706,2.5135981,237.95,237.93,18.49842398]
[1758317036727,2.5135981,237.95,237.93,17.79842398]
[1758317037235,0.2,237.95,237.93,17.79842398]
[1758317037436,2.5135981,237.95,237.93,18.45842398]
[1758317037930,2.5135981,237.95,237.93,17.79842398]
[1758317038240,31.2,237.94,237.93,18.45842398]
[1758317038436,0.2,237.95,237.93,18.45842398]
[1758317040534,0.2,237.95,237.94,46.45559401]
[1758317042633,0.2,237.95,237.94,50.65833419]
[1758317045339,0.2,237.95,237.94,131.45833419]
[1758317047535,0.2,237.95,237.94,133.77193229]
[1758317050452,0.2,237.95,237.94,101.59193229]
[1758317050640,0.2,237.95,237.94,133.75193229]
[1758317052832,0.2,237.95,237.94,135.43717169]
[1758317058456,1e-08,237.95,237.94,135.43717169]
[1758317058690,0.1,237.97,237.95,13.59559401]
[1758317058829,0.1,237.97,237.96,48.06919211]
[1758317059159,0.1,237.97,237.96,48.74919211]
[1758317059334,0.1,237.97,237.96,50.43414756]
[1758317059748,0.1,237.97,237.96,54.63653451]
[1758317061449,0.1,237.99,237.97,13.59559401]
[1758317061747,0.1,237.99,237.98,48.06919211]
[1758317061956,0.1,237.99,237.98,48.74919211]
[1758317062263,1e-08,237.99,237.98,50.43400562]
[1758317062849,1e-08,237.99,237.98,54.6360394]
[1758317066050,1e-08,237.99,237.98,135.4360394]
[1758317066250,1e-08,237.99,237.98,133.1224413]
[1758317066457,1e-08,237.99,237.98,135.4360394]
[1758317071366,0.1,238.01,237.99,13.59559401]
[1758317071562,0.1,238.01,238.0,48.06919211]
[1758317072076,0.1,238.01,238.0,49.75386371]
[1758317073648,0.1,238.01,238.0,53.95554438]
[1758317074867,0.1,238.01,238.0,134.75554438]
[1758317075866,0.1,238.01,238.0,133.92013304]
[1758317076365,0.1,238.01,238.0,133.90013304]
[1758317076564,0.1,238.01,238.0,132.42194628]
[1758317076862,0.1,238.01,238.0,133.90013304]
[1758317081064,0.1,238.01,238.0,134.61013304]
[1758317081246,0.1,238.01,238.0,147.35509101]
[1758317081448,0.1,238.01,238.0,146.64509101]
[1758317081851,0.1,238.01,238.0,147.35509101]
[1758317085972,1e-08,238.01,238.0,147.35509101]
[1758317086465,1e-08,238.01,238.0,115.21509101]
[1758317086768,1e-08,238.01,238.0,147.35509101]
[1758317086966,0.1,238.08,238.01,13.59559401]
[1758317087174,0.1,238.08,238.07,15.07378077]
[1758317087480,0.1,238.08,238.07,95.87378077]
[1758317087669,0.1,238.08,238.07,129.69809768]
[1758317087971,0.1,238.08,238.07,134.60854292]
[1758317088475,0.1,238.08,238.07,133.89854292]
[1758317088863,0.1,238.08,238.07,134.60854292]
[1758317089992,0.1,238.08,238.07,133.13035616]
[1758317090286,0.1,238.08,238.07,134.60854292]
[1758317090450,0.1,238.08,238.07,53.80854292]
[1758317091391,0.1,238.08,238.07,53.09854292]
[1758317091784,0.1,238.08,238.07,20.95854292]
[1758317091993,0.8,238.08,238.07,20.95854292]
[1758317092178,0.8,238.08,238.07,53.09854292]
[1758317092767,0.1,238.08,238.07,53.09854292]
[1758317095694,0.1,238.08,238.07,133.89854292]
[1758317096185,0.81,238.08,238.07,133.89854292]
[1758317096389,0.81,238.08,238.07,19.48035616]
[1758317096593,0.81,238.08,238.07,51.62035616]
[1758317099504,0.81,238.08,238.07,51.60035616]
[1758317101804,0.81,238.08,238.07,132.40035616]
[1758317105201,0.1,238.08,238.07,134.59854292]
[1758317105404,0.1,238.08,238.07,132.40035616]
[1758317106379,0.8,238.08,238.07,132.40035616]
[1758317107913,0.8,238.08,238.07,96.07991092]
[1758317108088,0.8,238.08,238.07,126.51559401]
[1758317109304,0.8,238.08,238.07,130.71603925]
[1758317111014,0.8,238.08,238.07,126.51559401]
[1758317112389,31.2,238.06,238.05,15.28019465]
[1758317112594,31.9,238.06,238.05,15.28019465]
[1758317113004,31.9,238.06,238.05,13.59559401]
[1758317113593,0.1,238.08,238.06,13.59559401]
[1758317113782,32.0,238.08,238.06,45.75559401]
[1758317113985,0.1,238.08,238.06,45.75559401]
[1758317114404,0.1,238.08,238.07,17.79603925]
[1758317116396,0.1,238.08,238.07,18.51603925]
[1758317117420,0.1,238.08,238.07,17.79603925]
[1758317117711,0.8,238.08,238.07,17.79603925]
[1758317119110,0.1,238.08,238.07,17.79603925]
[1758317119412,0.8,238.08,238.07,17.79603925]
[1758317124709,0.1,238.08,238.07,17.79603925]
[1758317130611,0.1,238.08,238.07,18.48603925]
[1758317131209,0.1,238.08,238.07,17.79603925]
[1758317132137,0.1,238.08,238.07,18.48603925]
[1758317132331,0.1,238.08,238.07,17.79603925]
[1758317134536,0.1,238.08,238.07,98.59603925]
[1758317139342,0.1,238.08,238.07,99.28603925]
[1758317140323,0.1,238.08,238.07,18.48603925]
[1758317141439,0.1,238.08,238.07,17.79603925]
[1758317144328,0.1,238.08,238.07,18.48603925]
[1758317144951,0.1,238.08,238.07,17.79603925]
[1758317145124,0.1,238.08,238.07,49.93603925]
[1758317145324,0.8,238.08,238.07,13.59559401]
[1758317146028,5.00026881,238.08,238.07,13.59559401]
[1758317146230,0.8,238.08,238.07,13.59559401]
[1758317152256,5.00026881,238.08,238.07,13.59559401]
[1758317152432,5.00026881,238.08,237.86,41.02068508]
[1758317152433,31.2,238.07,238.03,13.59559401]
[1758317152629,0.7,238.06,238.03,13.59559401]
[1758317152827,31.9,238.05,238.02,13.59559401]
[1758317153132,0.7,238.04,238.02,13.59559401]
[1758317154736,0.7,238.03,238.02,13.59559401]
[1758317154933,31.2,238.05,238.02,13.59559401]
[1758317155143,0.7,238.04,238.02,13.59559401]
[1758317160059,0.7,238.04,238.01,45.73559401]
[1758317160864,0.7,238.04,238.01,46.43559401]
[1758317161253,0.7,238.04,238.01,45.73559401]
[1758317161460,0.7,238.04,238.01,46.43559401]
[1758317163274,0.66,238.05,238.01,46.43559401]
[1758317163752,0.66,238.04,238.01,46.43559401]
[1758317164340,4.20063607,238.06,238.01,46.43559401]
[1758317164543,0.66,238.05,238.01,46.43559401]
[1758317167567,0.66,238.06,238.02,0.7]
[1758317167772,0.66,238.05,238.02,0.7]
[1758317170783,0.66,238.04,238.0,32.14]
[1758317170974,31.2,238.06,238.0,32.14]
[1758317171188,0.66,238.03,238.0,32.14]
[1758317171686,31.86,238.04,238.0,32.84]
[1758317173190,31.86,238.04,238.02,13.59559401]
[1758317173372,31.2,238.04,238.02,13.59559401]
[1758317174956,31.2,238.04,238.02,14.29559401]
[1758317175282,0.66,238.04,238.02,13.59559401]
[1758317180083,31.2,238.03,237.97,13.59559401]
[1758317180269,31.2,238.01,237.97,13.59559401]
[1758317180470,31.2,238.01,237.98,0.7]
[1758317180782,31.2,238.01,237.99,13.59559401]
[1758317180974,0.66,238.01,237.99,13.59559401]
[1758317181172,2.82858314,238.05,238.01,13.59559401]
[1758317181379,31.2,238.04,238.01,14.29559401]
[1758317181789,31.86,238.04,238.01,13.59559401]
[1758317182766,31.2,238.05,238.01,0.7]
[1758317182966,31.86,238.05,238.01,0.7]
[1758317184358,0.66,238.05,238.03,13.59559401]
[1758317184564,31.2,238.04,238.03,13.59559401]
[1758317185287,31.2,238.05,238.03,13.59559401]
[1758317188482,31.2,238.05,238.01,13.59559401]
[1758317188701,31.2,238.05,238.02,0.72]
[1758317189570,31.2,238.06,238.01,13.59559401]
[1758317189780,31.2,238.06,238.02,0.72]
[1758317189975,31.2,238.06,238.03,14.31559401]
[1758317190180,31.85,238.06,238.03,13.59559401]
[1758317191192,31.2,238.06,238.03,18.51672096]
[1758317192081,0.65,238.06,238.03,18.51672096]
[1758317192283,3.4842171,238.07,238.03,18.51672096]
[1758317192607,2.8342171,238.07,238.03,17.79672096]
[1758317192892,0.65,238.06,238.03,17.79672096]
[1758317193473,0.65,238.06,238.03,18.51672096]
[1758317196176,31.2,238.06,238.05,13.59559401]
[1758317196385,34.0342171,238.06,238.05,13.59559401]
[1758317196988,2.8342171,238.06,238.03,17.79672096]
[1758317197187,3.4842171,238.07,238.03,18.51672096]
[1758317197885,3.4842171,238.07,238.03,17.79672096]
[1758317198085,3.4842171,238.07,238.05,13.59559401]
[1758317198507,2.8342171,238.07,238.05,13.59559401]
[1758317198808,2.8342171,238.07,238.06,14.31559401]
[1758317199185,2.8342171,238.07,238.06,13.59559401]
[1758317199908,3.4842171,238.07,238.06,13.59559401]
[1758317202400,2.8342171,238.07,238.06,13.59559401]
[1758317207729,3.4842171,238.07,238.06,13.59559401]
[1758317207926,7.68466234,238.07,238.06,13.59559401]
[1758317208937,3.4842171,238.07,238.06,13.59559401]
[1758317211137,2.8342171,238.07,238.06,13.59559401]
[1758317212216,3.4842171,238.07,238.06,13.59559401]
[1758317219219,2.8342171,238.07,238.06,13.59559401]
[1758317219644,3.5142171,238.07,238.06,13.59559401]
[1758317220753,2.8342171,238.07,238.06,13.59559401]
[1758317232232,3.5142171,238.07,238.06,13.59559401]
[1758317232738,2.8342171,238.07,238.06,13.59559401]
[1758317239950,31.2,238.06,238.05,13.59559401]
[1758317240262,34.03701312,238.06,238.05,14.25559401]
[1758317243663,34.03701312,238.06,238.05,13.59559401]
[1758317245866,34.03701312,238.06,238.05,14.30559401]
[1758317246963,34.03701312,238.06,238.05,13.59559401]
[1758317252079,34.03701312,238.06,238.05,17.79639216]
[1758317252281,34.03701312,238.06,238.05,18.50639216]
[1758317252971,2.83701312,238.06,238.05,18.50639216]
[1758317253276,0.1,238.08,238.06,13.59559401]
[1758317253473,0.1,238.08,238.06,14.30559401]
[1758317253680,0.1,238.08,238.07,14.30559401]
[1758317253849,2.93818028,238.08,238.07,14.30559401]
[1758317254258,0.1,238.08,238.07,18.50603925]
[1758317256659,0.1,238.08,238.07,31.13894798]
[1758317260286,0.1,238.08,238.07,43.79446946]
[1758317260876,0.1,238.08,238.07,75.91446946]
[1758317261969,0.1,238.08,238.07,156.71446946]
[1758317264075,31.2,238.15,238.08,13.59559401]
[1758317264772,31.2,238.15,238.1,13.59559401]
[1758317264968,31.2,238.15,238.12,13.59559401]
[1758317265167,31.2,238.15,238.14,13.59559401]
[1758317270283,31.2,238.15,238.12,13.59559401]
[1758317276098,34.02970182,238.14,238.12,17.79513759]
[1758317276296,31.2,238.14,238.12,17.79513759]
[1758317281602,31.2,238.14,238.12,18.48513759]
[1758317282008,31.2,238.14,238.12,13.59559401]
[1758317284609,31.2,238.14,238.13,0.69]
[1758317284911,34.03029643,238.14,238.13,0.69]
[1758317285406,34.03029643,238.14,238.12,17.79514488]
[1758317285588,31.2,238.14,238.12,17.79514488]
[1758317288214,31.2,238.14,238.12,18.48514488]
[1758317288717,31.2,238.14,238.12,17.79514488]
[1758317289289,31.2,238.14,238.12,18.48514488]
[1758317289497,31.2,238.14,238.13,14.28559401]
[1758317289701,34.0317882,238.14,238.13,14.28559401]
[1758317289901,34.0317882,238.14,238.13,13.59559401]
[1758317291915,31.2,238.14,238.13,17.79498089]
[1758317294793,31.2,238.14,238.13,49.89498089]
[1758317295415,0.67,238.16,238.14,17.79463974]
[1758317295719,34.7036541,238.16,238.14,17.79463974]
[1758317296017,2.8336541,238.15,238.14,17.79463974]
[1758317296915,2.8336541,238.15,238.14,18.48463974]
[1758317297119,2.8336541,238.15,238.14,17.79463974]
[1758317297822,2.8336541,238.16,238.14,17.79463974]
[1758317298116,2.8336541,238.15,238.14,17.79463974]
[1758317298323,0.1,238.17,238.15,13.59559401]
[1758317298507,0.1,238.17,238.16,45.69559401]
[1758317298899,0.77,238.17,238.16,13.59559401]
[1758317299306,0.1,238.17,238.16,18.48445192]
[1758317299611,0.1,238.17,238.16,21.31924384]
[1758317306216,0.1,238.17,238.16,53.41924384]
[1758317315319,0.1,238.17,238.16,134.21924384]
[1758317364508,0.1,238.17,238.16,101.42924384]
[1758317364683,0.82,238.17,238.16,52.68924384]
[1758317365187,0.82,238.17,238.16,20.62924384]
[1758317365506,0.82,238.17,238.16,52.68924384]
[1758317367704,0.1,238.17,238.16,52.68924384]
[1758317368008,0.78,238.17,238.16,52.68924384]
[1758317368909,0.1,238.17,238.16,52.68924384]
[1758317371510,0.78,238.17,238.16,52.68924384]
[1758317371710,0.1,238.17,238.16,52.68924384]
[1758317394023,0.1,238.17,238.16,53.35924384]
[1758317400755,0.76,238.17,238.16,16.43038593]
[1758317400947,0.76,238.17,238.16,13.59559401]
[1758317401152,0.76,238.17,238.16,17.79445192]
[1758317401355,0.76,238.17,238.16,13.59559401]
[1758317402060,0.76,238.17,238.16,17.79445192]
[1758317404358,0.76,238.17,238.16,49.85445192]
[1758317408170,0.76,238.17,238.16,45.65559401]
[1758317408474,0.76,238.17,238.16,13.59559401]
[1758317411555,0.1,238.17,238.16,13.59559401]
[1758317416058,0.1,238.17,238.16,17.79445192]
[1758317416458,0.1,238.17,238.16,13.59559401]
[1758317416660,0.1,238.17,238.16,14.25559401]
[1758317416859,0.1,238.17,238.16,13.59559401]
[1758317417784,0.1,238.17,238.16,17.79445192]
[1758317418281,0.1,238.17,238.16,18.45445192]
[1758317418781,0.1,238.17,238.16,50.51445192]
[1758317418980,0.1,238.17,238.16,49.85445192]
[1758317419364,0.1,238.17,238.16,50.51445192]
[1758317430063,0.1,238.17,238.16,54.02727463]
[1758317432869,0.2,238.19,238.17,13.59559401]
[1758317433074,0.2,238.19,238.18,45.65559401]
[1758317433394,0.2,238.19,238.18,46.35559401]
[1758317433567,0.2,238.19,238.18,49.18830431]
[1758317434968,0.2,238.19,238.18,53.38680964]
[1758317469032,0.2,238.19,238.18,53.36680964]
[1758317482340,0.66,238.27,238.19,13.59559401]
[1758317482537,0.66,238.27,238.21,13.59559401]
[1758317482742,0.66,238.27,238.23,13.59559401]
[1758317482945,0.66,238.26,238.25,13.59559401]
[1758317483143,0.1,238.28,238.25,13.59559401]
[1758317483326,0.66,238.26,238.23,13.59559401]
[1758317483523,0.1,238.28,238.25,15.27906027]
[1758317483745,0.1,238.28,238.27,13.59559401]
[1758317484630,0.1,238.28,238.27,17.79251347]
[1758317485150,0.76,238.28,238.27,17.79251347]
[1758317486051,0.76,238.28,238.27,20.62631253]
[1758317487252,0.1,238.28,238.27,20.62631253]
[1758317487429,0.1,238.28,238.27,21.28631253]
[1758317493058,0.1,238.28,238.27,20.62631253]
[1758317493354,0.1,238.28,238.27,21.28631253]
[1758317498345,0.1,238.29,238.27,21.28631253]
[1758317498665,0.1,238.29,238.28,45.67559401]
[1758317498855,0.1,238.29,238.28,49.87233733]
[1758317499055,0.1,238.29,238.28,17.79233733]
[1758317499258,0.1,238.29,238.28,49.87233733]
[1758317499635,0.1,238.29,238.28,51.55537859]
[1758317503553,0.1,238.29,238.28,52.21537859]
[1758317503754,0.1,238.29,238.28,51.55537859]
[1758317504662,0.1,238.29,238.28,19.47537859]
[1758317504851,0.1,238.29,238.28,51.55537859]